Workbook

Sheet V001-002-2022

Sheet Rozpis Pozic
A1: Č.Sestavy | B1: Č.Výkresu | C1: Název | D1: Jakost | E1: Typ | F1: Vstupní materiál | G1: Délka | H1: Délka celková | I1: Č.Výkresu Pálení | J1: Hmotnost Kg/Ks | K1: Hmotnost Kg/Celková | L1: Množství/Pozice | M1: Množství celkové | N1: Mj
A2: S-D-1000 | B2: S-D-1000 | C2: Forma univerzální | E2: Sestava | K2: =SUM(K3:K4) -> 323 | L2: 5 | N2: Ks
A3: S-D-1000 | B3: V48 | C3: Vložka venkovní 15L | D3: S355JOH | E3: Výrobní výkres+Výpalek | F3: Plech s=15 | G3: Výpalek | H3: Výpalek | I3: l35_x12_f15_022.dxf | J3: 32.3 | K3: =J3*M3 -> 161.5 | L3: 1 | M3: =$L$2*L3 -> 5 | N3: Ks
A4: S-D-1000 | B4: V49 | C4: Vložka venkovní 15P | D4: S355JOH | E4: Výrobní výkres+Výpalek | F4: Plech s=15 | G4: Výpalek | H4: Výpalek | I4: l35_x12_f15_022.dxf | J4: 32.3 | K4: =J4*M4 -> 161.5 | L4: 1 | M4: =$L$2*L4 -> 5 | N4: Ks
A5: S-D-1001 | B5: S-D-1001 | C5: Horní Rám | E5: Sestava | J5: 1902 | K5: =SUM(K6:K24) -> 1896.7 | L5: 1 | N5: Ks
A6: S-D-1001 | B6: 2 | C6: Deska | D6: S235JR | E6: Výrobní výkres+Výpalek | F6: Plech s=20 | G6: Výpalek | H6: Výpalek | I6: l35_x12_f20_001.dxf | J6: 2.3 | K6: =J6*M6 -> 9.2 | L6: 4 | M6: =$L$5*L6 -> 4 | N6: Ks
A7: S-D-1001 | B7: 1 | C7: Středící kroužek | D7: S235JR | E7: Výrobní výkres | F7: TK 80 | G7: 17 | H7: =L7*G7 -> 272 | J7: 0.85 | K7: =J7*M7 -> 13.6 | L7: 16 | M7: =$L$5*L7 -> 16 | N7: Ks
A8: S-D-1001 | B8: 3 | C8: Skluz dna | D8: S235JR | E8: Výrobní výkres | F8: PLO 90x30 | G8: 230 | H8: 920 | J8: 4.4 | K8: 17.6 | L8: 4 | M8: 4 | N8: Ks
A9: S-D-1001 | B9: 4 | C9: HEB 160 | D9: S235JR | E9: Výrobní výkres | F9: HEB 160 | G9: 480 | H9: 960 | J9: 18 | K9: 36 | L9: 2 | M9: 2 | N9: Ks
A10: S-D-1001 | B10: 5 | C10: Lem rámu A | D10: S235JR | E10: Výrobní výkres | F10: Jackl 180x100x6 | G10: 4780 | H10: 9560 | J10: 115.7 | K10: 231.4 | L10: 2 | M10: 2 | N10: Ks
A11: S-D-1001 | B11: 6 | C11: Lem rámu B | D11: S235JR | E11: Výrobní výkres | F11: Jackl 180x100x6 | G11: 1610 | H11: 1610 | J11: 39.1 | K11: 39.1 | L11: 1 | M11: 1 | N11: Ks
A12: S-D-1001 | B12: l35_x12_f06_001.dxf | C12: Záslepka Jacklu | D12: S235JR | E12: Výpalek | F12: Plech s=6 | G12: Výpalek | H12: Výpalek | I12: l35_x12_f06_001.dxf | J12: 0.7 | K12: 2.8 | L12: 4 | M12: 4 | N12: Ks
A13: S-D-1001 | B13: l35_x12_f06_002.dxf | C13: Žebro dna | D13: S235JR | E13: Výpalek | F13: Plech s=6 | G13: Výpalek | H13: Výpalek | I13: l35_x12_f06_002.dxf | J13: 4.5 | K13: 90 | L13: 20 | M13: 20 | N13: Ks
A14: S-D-1001 | B14: z62_c06_f06_003.dxf | C14: Podložka matice | D14: S235JR | E14: Výpalek | F14: Plech s=6 | G14: Výpalek | H14: Výpalek | I14: l35_x12_f06_003.dxf | J14: 0.2 | K14: 3.2 | L14: 16 | M14: 16 | N14: Ks
A15: S-D-1001 | B15: l35_x12_f10_001.dxf | C15: Základový plech | D15: S235JR | E15: Výpalek | F15: Plech s=10 | G15: Výpalek | H15: Výpalek | I15: l35_x12_f10_001.dxf | J15: 643.9 | K15: 643.9 | L15: 1 | M15: 1 | N15: Ks
A16: S-D-1001 | B16: l35_x12_f10_002.dxf | C16: Příruba HEB 160 | D16: S235JR | E16: Výpalek | F16: Plech s=10 | G16: Výpalek | H16: Výpalek | I16: l35_x12_f10_002.dxf | J16: 1.9 | K16: 17.1 | L16: 9 | M16: 9 | N16: Ks
A17: S-D-1001 | B17: l35_x12_f10_003.dxf | C17: Příruba HEB 140 | D17: S235JR | E17: Výpalek | F17: Plech s=10 | G17: Výpalek | H17: Výpalek | I17: l35_x12_f10_003.dxf | J17: 2 | K17: 10 | L17: 5 | M17: 5 | N17: Ks
A18: S-D-1001 | B18: l35_x12_f10_004.dxf | C18: Kotevní deska A | D18: S235JR | E18: Výpalek | F18: Plech s=10 | G18: Výpalek | H18: Výpalek | I18: l35_x12_f10_004.dxf | J18: 4.7 | K18: 56.4 | L18: 12 | M18: 12 | N18: KS
A19: S-D-1001 | B19: l35_x12_f10_005.dxf | C19: Kotevní deska B | D19: S235JR | E19: Výpalek | F19: Plech s=10 | G19: Výpalek | H19: Výpalek | I19: l35_x12_f10_005.dxf | J19: 2.5 | K19: 22.5 | L19: 9 | M19: 9 | N19: Ks
A20: S-D-1001 | B20: S-D-1001 | C20: Jackl 180x100x6 | D20: S235JR | E20: Děleno hotově | F20: Jackl 180x100x6 | G20: 160 | H20: 320 | J20: 3.9 | K20: 7.8 | L20: 2 | M20: 2 | N20: Ks
A21: S-D-1001 | B21: S-D-1001 | C21: Jackl 180x100x6 | D21: S235JR | E21: Děleno hotově | F21: Jackl 180x100x6 | G21: 1610 | H21: 1610 | J21: 39.5 | K21: 39.5 | L21: 1 | M21: 1 | N21: Ks
A22: S-D-1001 | B22: S-D-1001 | C22: Jackl 180x100x6 | D22: S235JR | E22: Děleno hotově | F22: Jackl 180x100x6 | G22: 4780 | H22: 9560 | J22: 117.2 | K22: 234.4 | L22: 2 | M22: 2 | N22: Ks
A23: S-D-1001 | B23: S-D-1001 | C23: HEB 160 | D23: S235JR | E23: Děleno hotově | F23: HEB 160 | G23: 1620 | H23: 9720 | J23: 69.3 | K23: 415.8 | L23: 6 | M23: 6 | N23: Ks
A24: S-D-1001 | B24: S-D-1001 | C24: TR 35x5 | D24: S235JR | E24: Děleno hotově | F24: TR 35x5 | G24: 100 | H24: 1600 | J24: 0.4 | K24: 6.4 | L24: 16 | M24: 16 | N24: Ks
A25: S-D-1002 | B25: S-D-1002 | C25: Příčník | E25: Sestava | J25: 239 | K25: =SUM(K26:K35) -> 233.4 | L25: 1 | N25: Ks
A26: S-D-1002 | B26: 1 | C26: Středící kroužek | D26: S235JR | E26: Výrobní výkres | F26: TK 80 | G26: 17 | H26: =G26*L26 -> 102 | J26: 0.85 | K26: =J26*M26 -> 5.1 | L26: 6 | M26: =$L$25*L26 -> 6 | N26: Ks
A27: S-D-1002 | B27: l35_x12_f05_001.dxf | C27: Žebro | D27: S235JR | E27: Výpalek | F27: Plech s=5 | G27: Výpalek | H27: Výpalek | I27: l35_x12_f05_001.dxf | J27: 0.7 | K27: =J27*M27 -> 11.2 | L27: 16 | M27: =$L$25*L27 -> 16 | N27: Ks
A28: S-D-1002 | B28: l35_x12_f06_003.dxf | C28: Podložka matice | D28: S235JR | E28: Výpalek | F28: Plech s=6 | G28: Výpalek | H28: Výpalek | I28: l35_x12_f06_003.dxf | J28: 0.2 | K28: 1.2 | L28: 6 | M28: 6 | N28: Ks
A29: S-D-1002 | B29: l35_x12_f06_004.dxf | C29: Bočnice 01 | D29: S235JR | E29: Výpalek | F29: Plech s=6 | G29: Výpalek | H29: Výpalek | I29: l35_x12_f06_004.dxf | J29: 16.6 | K29: 33.2 | L29: 2 | M29: 2 | N29: Ks
A30: S-D-1002 | B30: l35_x12_f06_004a.dxf | C30: Bočnice 02 | D30: S235JR | E30: Výpalek | F30: Plech s=6 | G30: Výpalek | H30: Výpalek | I30: l35_x12_f06_004a.dxf | J30: 15.9 | K30: 31.8 | L30: 2 | M30: 2 | N30: Ks
A31: S-D-1002 | B31: l35_x12_f06_005.dxf | C31: Klínek | D31: S235JR | E31: Výpalek | F31: Plech s=6 | G31: Výpalek | H31: Výpalek | I31: l35_x12_f06_005.dxf | J31: 0.4 | K31: 1.6 | L31: 4 | M31: 4 | N31: Ks
A32: S-D-1002 | B32: l35_x12_f10_006.dxf | C32: Pásek | D32: S235JR | E32: Výpalek | F32: Plech s=10 | G32: Výpalek | H32: Výpalek | I32: l35_x12_f10_006.dxf | J32: 64.8 | K32: 64.8 | L32: 1 | M32: 1 | N32: Ks
A33: S-D-1002 | B33: l35_x12_f15_001.dxf | C33: Základna | D33: S235JR | E33: Výpalek | F33: Plech s=15 | G33: Výpalek | H33: Výpalek | I33: l35_x12_f15_001.dxf | J33: 3.9 | K33: 15.6 | L33: 4 | M33: 4 | N33: Ks
A34: S-D-1002 | B34: S-D-1002 | C34: U120 | D34: S235JR | E34: Děleno hotově | F34: U 120 | G34: 4940 | H34: =L34*G34 -> 4940 | J34: 65.9 | K34: 65.9 | L34: 1 | M34: 1 | N34: Ks
A35: S-D-1002 | B35: S-D-1002 | C35: TR 35x5 | D35: S235JR | E35: Děleno hotově | F35: TR 35x5 | G35: 130 | H35: =L35*G35 -> 780 | J35: 0.5 | K35: 3 | L35: 6 | M35: 6 | N35: Ks
A36: S-D-1003 | B36: S-D-1003 | C36: Forma B | E36: Sestava | J36: 272.2 | K36: =SUM(K37:K45) -> 543.6 | L36: 2 | N36: Ks
A37: S-D-1003 | B37: 7 | C37: Kolej | D37: S235JR | E37: Výrobní výkres | F37: HEB 160 | G37: 1900 | H37: =L37*G37 -> 3800 | J37: 81.5 | K37: =J37*M37 -> 326 | L37: 2 | M37: =$L$36*L37 -> 4 | N37: Ks
A38: S-D-1003 | B38: 8 | C38: Hřeben | D38: S235JR | E38: Výrobní výkres | F38: HEB 140 | G38: 1900 | H38: 1900 | J38: 59.7 | K38: =J38*M38 -> 119.4 | L38: 1 | M38: =$L$36*L38 -> 2 | N38: Ks
A39: S-D-1003 | B39: 9 | C39: Příčka | D39: S235JR | E39: Výrobní výkres | F39: U 140 | G39: 692.5 | H39: 1385 | J39: 11 | K39: 44 | L39: 2 | M39: 4 | N39: Ks
A40: S-D-1003 | B40: l35_x12_f08_001.dxf | C40: Příložka | D40: S235JR | E40: Výpalek | F40: Plech s=8 | G40: Výpalek | H40: Výpalek | I40: l35_x12_f08_001.dxf | J40: 3.1 | K40: 12.4 | L40: 2 | M40: 4 | N40: Ks
A41: S-D-1003 | B41: l35_x12_f10_002.dxf | C41: Příruba HEB160 | D41: S235JR | E41: Výpalek | F41: Plech s=10 | G41: Výpalek | H41: Výpalek | I41: l35_x12_f10_002.dxf | J41: 1.9 | K41: 7.6 | L41: 2 | M41: 4 | N41: Ks
A42: S-D-1003 | B42: l35_x12_f10_003.dxf | C42: Příruba HEB 140 | D42: S235JR | E42: Výpalek | F42: Plech s=10 | G42: Výpalek | H42: Výpalek | I42: l35_x12_f10_003.dxf | J42: 2 | K42: 4 | L42: 1 | M42: 2 | N42: Ks
A43: S-D-1003 | B43: l35_x12_f10_005.dxf | C43: Kotevní deska B | D43: S235JR | E43: Výpalek | F43: Plech s=10 | G43: Výpalek | H43: Výpalek | I43: l35_x12_f10_005.dxf | J43: 2.5 | K43: 5 | L43: 1 | M43: 2 | N43: Ks
A44: S-D-1003 | B44: l35_x12_f10_007.dxf | C44: Kotevní deska koleje | D44: S235JR | E44: Výpalek | F44: Plech s=10 | G44: Výpalek | H44: Výpalek | I44: l35_x12_f10_007.dxf | J44: 4.7 | K44: 18.8 | L44: 2 | M44: 4 | N44: Ks
A45: S-D-1003 | B45: l35_x12_f15_002.dxf | C45: Doraz | D45: S355JOH | E45: Výpalek | F45: Plech s=15 | G45: Výpalek | H45: Výpalek | I45: l35_x12_f15_002.dxf | J45: 1.6 | K45: 6.4 | L45: 2 | M45: 4 | N45: Ks
A46: S-D-1004 | B46: S-D-1004 | C46: Držák | E46: Sestava | J46: 281.5 | K46: =SUM(K47:K55) -> 281 | L46: 1 | N46: Ks
A47: S-D-1004 | B47: 7 | C47: Kolej | D47: S235JR | E47: Výrobní výkres | F47: HEB 160 | G47: 1900 | H47: =L47*G47 -> 3800 | J47: 81.5 | K47: =J47*M47 -> 163 | L47: 2 | M47: =$L$46*L47 -> 2 | N47: Ks
A48: S-D-1004 | B48: 8 | C48: Hřeben | D48: S235JR | E48: Výrobní výkres | F48: HEB 140 | G48: 1900 | H48: 1900 | J48: 59.7 | K48: =J48*M48 -> 59.7 | L48: 1 | M48: =$L$46*L48 -> 1 | N48: Ks
A49: S-D-1004 | B49: 10 | C49: Příčka | D49: S235JR | E49: Výrobní výkres | F49: U 140 | G49: 892.5 | H49: 1785 | J49: 14.2 | K49: 28.4 | L49: 2 | M49: 2 | N49: Ks
A50: S-D-1004 | B50: l35_x12_f08_001.dxf | C50: Příložka | D50: S235JR | E50: Výpalek | F50: Plech s=8 | G50: Výpalek | H50: Výpalek | I50: l35_x12_f08_001.dxf | J50: 3.1 | K50: 6.2 | L50: 2 | M50: 2 | N50: Ks
A51: S-D-1004 | B51: l35_x12_f10_002.dxf | C51: Příruba HEB160 | D51: S235JR | E51: Výpalek | F51: Plech s=10 | G51: Výpalek | H51: Výpalek | I51: l35_x12_f10_002.dxf | J51: 1.9 | K51: 1.9 | L51: 1 | M51: 1 | N51: Ks
A52: S-D-1004 | B52: l35_x12_f10_003.dxf | C52: Příruba HEB 140 | D52: S235JR | E52: Výpalek | F52: Plech s=10 | G52: Výpalek | H52: Výpalek | I52: l35_x12_f10_003.dxf | J52: 2 | K52: 2 | L52: 1 | M52: 1 | N52: Ks
A53: S-D-1004 | B53: l35_x12_f10_005.dxf | C53: Kotevní deska B | D53: S235JR | E53: Výpalek | F53: Plech s=10 | G53: Výpalek | H53: Výpalek | I53: l35_x12_f10_005.dxf | J53: 2.5 | K53: 2.5 | L53: 1 | M53: 1 | N53: Ks
A54: S-D-1004 | B54: l35_x12_f10_007.dxf | C54: Kotevní deska koleje | D54: S235JR | E54: Výpalek | F54: Plech s=10 | G54: Výpalek | H54: Výpalek | I54: l35_x12_f10_007.dxf | J54: 4.7 | K54: 14.1 | L54: 3 | M54: 3 | N54: Ks
A55: S-D-1004 | B55: l35_x12_f15_002.dxf | C55: Doraz | D55: S355JOH | E55: Výpalek | F55: Plech s=15 | G55: Výpalek | H55: Výpalek | I55: l35_x12_f15_002.dxf | J55: 1.6 | K55: 3.2 | L55: 2 | M55: 2 | N55: Ks
A56: S-D-1005 | B56: S-D-1005 | C56: Horní Rám A | E56: Sestava | J56: 450 | K56: =SUM(K57:K65) -> 887.2 | L56: 2 | N56: Ks
A57: S-D-1005 | B57: 9 | C57: Příčka | D57: S235JR | E57: Výrobní výkres | F57: U 140 | G57: 692.5 | H57: =L57*G57 -> 2770 | J57: 11 | K57: =J57*M57 -> 88 | L57: 4 | M57: =$L$56*L57 -> 8 | N57: Ks
A58: S-D-1005 | B58: 11 | C58: Kolej | D58: S235JR | E58: Výrobní výkres | F58: HEB 160 | G58: 3100 | H58: 6200 | J58: 132.4 | K58: =J58*M58 -> 529.6 | L58: 2 | M58: =$L$56*L58 -> 4 | N58: Ks
A59: S-D-1005 | B59: 12 | C59: Hřeben | D59: S235JR | E59: Výrobní výkres | F59: HEB 140 | G59: 3100 | H59: 3100 | J59: 95.8 | K59: 191.6 | L59: 1 | M59: 2 | N59: Ks
A60: S-D-1005 | B60: l35_x12_f08_001.dxf | C60: Příložka | D60: S235JR | E60: Výpalek | F60: Plech s=8 | G60: Výpalek | H60: Výpalek | I60: l35_x12_f08_001.dxf | J60: 3.1 | K60: 12.4 | L60: 2 | M60: 4 | N60: Ks
A61: S-D-1005 | B61: l35_x12_f10_002.dxf | C61: Příruba HEB160 | D61: S235JR | E61: Výpalek | F61: Plech s=10 | G61: Výpalek | H61: Výpalek | I61: l35_x12_f10_002.dxf | J61: 1.9 | K61: 7.6 | L61: 2 | M61: 4 | N61: Ks
A62: S-D-1005 | B62: l35_x12_f10_003.dxf | C62: Příruba HEB 140 | D62: S235JR | E62: Výpalek | F62: Plech s=10 | G62: Výpalek | H62: Výpalek | I62: l35_x12_f10_003.dxf | J62: 2 | K62: 4 | L62: 1 | M62: 2 | N62: Ks
A63: S-D-1005 | B63: l35_x12_f10_005.dxf | C63: Kotevní deska B | D63: S235JR | E63: Výpalek | F63: Plech s=10 | G63: Výpalek | H63: Výpalek | I63: l35_x12_f10_005.dxf | J63: 2.5 | K63: 10 | L63: 2 | M63: 4 | N63: Ks
A64: S-D-1005 | B64: l35_x12_f10_007.dxf | C64: Kotevní deska koleje | D64: S235JR | E64: Výpalek | F64: Plech s=10 | G64: Výpalek | H64: Výpalek | I64: l35_x12_f10_007.dxf | J64: 4.7 | K64: 37.6 | L64: 4 | M64: 8 | N64: Ks
A65: S-D-1005 | B65: l35_x12_f15_002.dxf | C65: Doraz | D65: S355JOH | E65: Výpalek | F65: Plech s=15 | G65: Výpalek | H65: Výpalek | I65: l35_x12_f15_002.dxf | J65: 1.6 | K65: 6.4 | L65: 2 | M65: 4 | N65: Ks
A66: S-D-1006 | B66: S-D-1006 | C66: Horní Rám B | E66: Sestava | J66: 2842 | K66: =SUM(K67:K76) -> 2838.6 | L66: 1 | N66: Ks
A67: S-D-1006 | B67: 35 | C67: Čep Páky | D67: S235JR | E67: Výrobní výkres | F67: TK 30h9 | G67: 127 | H67: =L67*G67 -> 254 | J67: 0.7 | K67: =J67*M67 -> 1.4 | L67: 2 | M67: =$L$66*L67 -> 2 | N67: Ks
A68: S-D-1006 | B68: Pod. 3516 | C68: Bok L | E68: Podsestava | F68: Podsestava | G68: Podsestava | H68: Podsestava | J68: 2453 | K68: =J68*M68 -> 2453 | L68: 1 | M68: =$L$66*L68 -> 1 | N68: Ks
A69: S-D-1006 | B69: Pod. 3517 | C69: BOK P | E69: Podsestava | F69: Podsestava | G69: Podsestava | H69: Podsestava | J69: 212 | K69: 212 | L69: 1 | M69: 1 | N69: Ks
A70: S-D-1006 | B70: Pod. 3517 | C70: Páka | E70: Podsestava | F70: Podsestava | G70: Podsestava | H70: Podsestava | J70: 18.2 | K70: 36.4 | L70: 2 | M70: 2 | N70: Ks
A71: S-D-1006 | B71: Pod. 3517 | C71: Žebřík | E71: Podsestava | F71: Podsestava | G71: Podsestava | H71: Podsestava | J71: 30.5 | K71: 30.5 | L71: 1 | M71: 1 | N71: Ks
A72: S-D-1006 | B72: Pod. 3517 | C72: Závora zábradlí | E72: Podsestava | F72: Podsestava | G72: Podsestava | H72: Podsestava | J72: 3.8 | K72: 3.8 | L72: 1 | M72: 1 | N72: Ks
A73: S-D-1006 | B73: Pod. 3517 | C73: Konzola Lávky | E73: Podsestava | F73: Podsestava | G73: Podsestava | H73: Podsestava | J73: 7.3 | K73: 36.5 | L73: 5 | M73: 5 | N73: Ks
A74: S-D-1006 | B74: Pod. 3517 | C74: Zábradlí 01 L | E74: Podsestava | F74: Podsestava | G74: Podsestava | H74: Podsestava | J74: 16 | K74: 16 | L74: 1 | M74: 1 | N74: Ks
A75: S-D-1006 | B75: Pod. 3517 | C75: Zábradlí 02 L | E75: Podsestava | F75: Podsestava | G75: Podsestava | H75: Podsestava | J75: 27 | K75: 27 | L75: 1 | M75: 1 | N75: Ks
A76: S-D-1006 | B76: Pod. 3517 | C76: Záslepka | E76: Podsestava | F76: Podsestava | G76: Podsestava | H76: Podsestava | J76: 0.5 | K76: 22 | L76: 44 | M76: 44 | N76: Ks

Sheet Děleno Hotově+Výrobní výkresy
A1: Vstupní materiál | B1: Délka | C1: Hmotnost Kg/Ks | D1: Množství celkové | E1: Délka celková | F1: Hmotnost celková
A2: TK 80 | B2: 34 | C2: 1.7 | D2: 22 | E2: 374 | F2: 18.7
A3: PLO 90x30 | B3: 230 | C3: 4.4 | D3: 4 | E3: 920 | F3: 17.6
A4: HEB 160 | B4: 9000 | C4: 382.7 | D4: 18 | E4: 34480 | F4: 1470.4
A5: Jackl 180x100x6 | B5: 12940 | C5: 315.4 | D5: 8 | E5: 22660 | F5: 552.2
A6: TR 35x5 | B6: 230 | C6: 0.9 | D6: 22 | E6: 2380 | F6: 9.4
A7: U 120 | B7: 4940 | C7: 65.9 | D7: 1 | E7: 4940 | F7: 65.9
A8: HEB 140 | B8: 6900 | C8: 215.2 | D8: 5 | E8: 11900 | F8: 370.7
A9: U 140 | B9: 2277.5 | C9: 36.2 | D9: 14 | E9: 10095 | F9: 160.4
A10: TK 30h9 | B10: 127 | C10: 0.7 | D10: 2 | E10: 254 | F10: 1.4
F11: =SUM(F2:F10) -> 2666.7

Sheet Výpalky
A1: Č.Výkresu Pálení | B1: Síla Plechu | C1: Hmotnost Kg/Ks | D1: Množství celkové
A2: l35_x12_f05_001.dxf | B2: =IFERROR(MID(A2,10,2)*1,"Vyřezat") -> 5 | C2: 0.7 | D2: 16
A3: l35_x12_f06_001.dxf | B3: 6 | C3: 0.7 | D3: 4
A4: l35_x12_f06_002.dxf | B4: 6 | C4: 4.5 | D4: 20
A5: l35_x12_f06_003.dxf | B5: 6 | C5: 0.4 | D5: 22
A6: l35_x12_f06_004.dxf | B6: 6 | C6: 16.6 | D6: 2
A7: l35_x12_f06_004a.dxf | B7: 6 | C7: 15.9 | D7: 2
A8: l35_x12_f06_005.dxf | B8: 6 | C8: 0.4 | D8: 4
A9: l35_x12_f08_001.dxf | B9: 8 | C9: 9.3 | D9: 10
A10: l35_x12_f10_001.dxf | B10: 10 | C10: 643.9 | D10: 1
A11: l35_x12_f10_002.dxf | B11: 10 | C11: 7.6 | D11: 18
A12: l35_x12_f10_003.dxf | B12: 10 | C12: 8 | D12: 10
A13: l35_x12_f10_004.dxf | B13: 10 | C13: 4.7 | D13: 12
A14: l35_x12_f10_005.dxf | B14: 10 | C14: 10 | D14: 16
A15: l35_x12_f10_006.dxf | B15: 10 | C15: 64.8 | D15: 1
A16: l35_x12_f10_007.dxf | B16: 10 | C16: 14.1 | D16: 15
A17: l35_x12_f15_001.dxf | B17: 15 | C17: 3.9 | D17: 4
A18: l35_x12_f15_002.dxf | B18: 15 | C18: 4.8 | D18: 10
A19: l35_x12_f15_022.dxf | B19: 15 | C19: 64.6 | D19: 10
A20: l35_x12_f20_001.dxf | B20: 20 | C20: 2.3 | D20: 4
C21: =SUM(C2:C20) -> 877.2

Sheet Data pro tabulky Skrýt
A1: Data Pro TYP | G1: Označení | H1: Plech
A2: Děleno hotově | G2: f02 | H2: Plech s=2mm
A3: Nakoupený díl | G3: f03 | H3: Plech s=3mm
A4: Sestava | G4: f04 | H4: Plech s=4mm
A5: Výpalek | G5: f05 | H5: Plech s=5mm
A6: Výrobní výkres | G6: f06 | H6: Plech s=6mm
A7: Výrobní výkres+Výpalek | G7: f07 | H7: Plech s=7mm
A8: Podsestava | G8: f08 | H8: Plech s=8mm
G9: f09 | H9: Plech s=9mm
G10: f10 | H10: Plech s=10mm
G11: f11 | H11: Plech s=11mm
G12: f12 | H12: Plech s=12mm
G13: f13 | H13: Plech s=13mm
G14: f14 | H14: Plech s=14mm
G15: f15 | H15: Plech s=15mm
G16: f16 | H16: Plech s=16mm
G17: f17 | H17: Plech s=17mm
G18: f18 | H18: Plech s=18mm
G19: f19 | H19: Plech s=19mm
G20: f20 | H20: Plech s=20mm
G21: f21 | H21: Plech s=21mm
G22: f22 | H22: Plech s=22mm
G23: f23 | H23: Plech s=23mm
G24: f24 | H24: Plech s=24mm
G25: f25 | H25: Plech s=25mm
